bitfinex/quotes_ETHUSD_20250813
["timestamp","ask_amount","ask_price","bid_price","bid_amount"]
[1755112001813,14.5,4719.9,4719.8,13.58855568]
[1755112002188,14.5,4719.9,4719.8,14.92055568]
[1755112003424,0.1056,4720.0,4719.8,14.47905568]
[1755112003586,0.1056,4720.0,4719.9,0.8905]
[1755112003587,0.6556,4720.0,4719.9,0.8905]
[1755112003787,0.6556,4720.0,4719.8,14.03005568]
[1755112003788,0.1056,4720.0,4719.8,13.58855568]
[1755112003991,0.1056,4720.0,4719.8,11.382]
[1755112003992,15.05,4719.9,4719.8,11.382]
[1755112004184,15.05,4719.9,4719.8,8.078]
[1755112004387,15.05,4719.9,4719.8,11.379]
[1755112007822,24.05,4719.9,4719.8,11.379]
[1755112008526,24.5133,4719.9,4719.8,11.379]
[1755112008694,24.5133,4719.9,4719.8,8.379]
[1755112009442,25.362,4719.9,4719.8,8.379]
[1755112010102,24.05,4719.9,4719.8,8.379]
[1755112011524,24.05,4719.9,4719.8,9.711]
[1755112011727,23.5,4719.9,4719.8,9.711]
[1755112012319,23.5,4719.9,4719.8,10.005039]
[1755112013812,23.5,4719.9,4719.8,9.711]
[1755112014339,23.502,4719.9,4719.8,9.711]
[1755112017150,0.1056,4720.0,4719.8,9.2695]
[1755112017446,0.02,4720.4,4719.9,28.02011449]
[1755112017651,0.02,4720.4,4720.1,3.0]
[1755112017847,0.02,4720.4,4720.2,3.291]
[1755112018348,0.02,4720.4,4720.3,1.332]
[1755112018559,0.02,4720.4,4720.3,1.4376]
[1755112019512,0.02,4720.4,4720.3,4.4376]
[1755112019717,0.02,4720.4,4720.3,6.64415568]
[1755112020363,0.002,4721.2,4720.6,3.0]
[1755112020570,0.002,4721.2,4720.8,3.0]
[1755112020782,0.002,4721.2,4720.8,3.1056]
[1755112020978,0.002,4721.2,4720.4,23.68811449]
[1755112021184,0.1076,4721.2,4720.5,3.3956]
[1755112021574,0.1076,4721.2,4720.6,0.9432]
[1755112021887,0.1076,4721.2,4720.6,1.3786]
[1755112022086,14.5,4721.1,4720.7,0.9432]
[1755112022387,14.5,4721.1,4720.8,3.29]
[1755112024090,14.5,4721.1,4720.8,4.2332]
[1755112024288,14.5,4721.1,4720.8,5.49655568]
[1755112025073,0.55,4721.0,4720.8,3.29]
[1755112025272,1.1264,4720.9,4720.8,6.29]
[1755112025679,1.1264,4720.9,4720.8,11.366]
[1755112025680,15.6264,4720.9,4720.8,11.366]
[1755112025873,15.1576,4720.9,4720.8,11.366]
[1755112026996,16.4454,4720.9,4720.8,5.076]
[1755112027293,18.09014,4720.9,4720.8,8.363]
[1755112028278,18.09014,4720.9,4720.8,5.076]
[1755112028479,18.09014,4720.9,4720.8,8.363]
[1755112030293,0.55,4720.8,4719.4,3.0]
[1755112030499,1.3934,4720.7,4719.6,3.0]
[1755112030664,0.55,4720.6,4719.6,3.0]
[1755112030871,0.55,4720.1,4719.6,3.0]
[1755112031082,0.55,4720.1,4719.7,0.001]
[1755112031704,0.55,4720.1,4719.9,3.0]
[1755112031904,0.4688,4720.3,4719.7,0.001]
[1755112031905,0.55,4719.9,4719.7,0.001]
[1755112032203,1.3934,4720.0,4719.7,0.001]
[1755112032504,1.0188,4719.8,4719.7,0.001]
[1755112032704,15.5188,4719.8,4719.7,0.001]
[1755112032900,15.5188,4719.8,4719.7,6.284]
[1755112033311,16.4434,4719.8,4719.7,6.284]
[1755112033797,15.05,4719.8,4719.7,6.284]
[1755112034500,15.5188,4719.8,4719.7,6.284]
[1755112034699,15.05,4719.8,4719.7,6.284]
[1755112036102,0.002,4720.9,4719.8,3.001]
[1755112036271,0.552,4720.9,4719.9,3.281]
[1755112036471,14.5,4720.8,4719.9,4.6596]
[1755112036690,14.5,4720.8,4720.0,1.3786]
[1755112036902,14.5,4720.8,4720.2,3.0]
[1755112037120,0.1056,4720.5,4720.4,3.0]
[1755112037807,0.1056,4720.5,4720.4,4.3786]
[1755112038190,0.1056,4720.5,4720.4,3.9432]
[1755112038679,0.1056,4720.5,4720.4,3.02118464]
[1755112038872,14.6056,4720.8,4720.4,4.3786]
[1755112039078,14.6056,4720.8,4720.6,3.0]
[1755112039276,14.6056,4720.8,4720.7,7.2232]
[1755112039502,14.5,4720.8,4720.7,6.28]
[1755112039703,14.5,4720.8,4720.7,7.6586]
[1755112039875,14.5,4720.8,4720.7,4.6586]
[1755112040079,14.5,4720.8,4720.7,5.34511557]
[1755112042104,0.002,4720.9,4720.7,5.34511557]
[1755112042305,0.002,4720.9,4720.8,1.3786]
[1755112042713,0.002,4720.9,4720.8,1.4849169]
[1755112046299,0.002,4720.9,4720.8,9.5609169]
[1755112046499,0.002,4720.9,4720.8,11.43431572]
[1755112048092,0.002,4720.9,4720.8,9.94939882]
[1755112048298,0.002,4720.9,4720.8,8.076]
[1755112048698,1.0208,4720.9,4720.8,8.076]
[1755112049028,1.9454,4720.9,4720.8,8.076]
[1755112049321,16.4454,4720.9,4720.8,8.076]
[1755112049491,16.551,4720.9,4720.8,8.076]
[1755112050194,15.1576,4720.9,4720.8,8.076]
[1755112051217,15.052,4720.9,4720.8,8.076]
[1755112051423,14.502,4720.9,4720.8,10.6155]
[1755112052523,14.502,4720.9,4720.8,9.2686]
[1755112052824,14.502,4720.9,4720.8,8.9585]
[1755112053024,14.502,4720.9,4720.8,9.4229]
[1755112053721,14.502,4720.9,4720.8,8.9585]
[1755112054428,0.002,4720.9,4720.8,8.9585]
[1755112055529,0.002,4720.9,4720.8,8.076]
[1755112056624,0.002,4720.9,4720.8,18.79760405]
[1755112057023,0.002,4720.9,4720.8,8.076]
[1755112057325,0.002,4720.9,4720.8,18.79760405]
[1755112058024,0.4307,4720.9,4720.8,18.79760405]
[1755112058428,0.002,4720.9,4720.8,18.79760405]
[1755112058597,14.502,4720.9,4720.8,18.79760405]
[1755112058803,14.502,4720.9,4720.8,22.07360405]
[1755112059196,15.052,4720.9,4720.8,11.352]
[1755112059404,16.3464,4720.9,4720.8,11.352]
[1755112059719,17.9918,4720.9,4720.8,11.352]
[1755112060429,17.9918,4720.9,4720.8,8.075]
[1755112060629,17.9918,4720.9,4720.8,11.352]
[1755112060797,17.9918,4720.9,4720.8,8.352]
[1755112062310,17.9918,4720.9,4720.8,8.353]
[1755112063020,15.052,4720.9,4720.8,8.353]
[1755112063621,15.4807,4720.9,4720.8,8.353]
[1755112063818,15.052,4720.9,4720.8,11.353]
[1755112064621,15.4807,4720.9,4720.8,11.353]
[1755112065030,16.3464,4720.9,4720.8,11.353]
[1755112065228,17.9918,4720.9,4720.8,11.353]
[1755112065426,17.9918,4720.9,4720.8,5.076]
[1755112065626,17.9918,4720.9,4720.8,8.353]
[1755112065826,0.55,4720.8,4720.2,0.001]
[1755112066111,0.9787,4720.8,4720.4,3.0]
[1755112066424,1.8444,4720.7,4720.6,3.0]
[1755112067163,14.5,4720.7,4720.6,8.353]
[1755112067314,0.002,4720.9,4720.7,3.0]
[1755112067510,0.6576,4720.9,4720.8,3.311]
[1755112067714,15.1576,4720.9,4720.8,3.311]
[1755112069958,14.6076,4720.9,4720.8,4.1935]
[1755112070139,14.6076,4720.9,4720.8,3.311]
[1755112070345,0.55,4720.8,4720.7,3.0]
[1755112070511,0.55,4720.8,4720.7,6.314]
[1755112072544,0.55,4720.8,4720.7,3.0]
[1755112072749,0.55,4720.8,4720.7,6.313]
[1755112076937,0.55,4720.8,4720.7,7.1955]
[1755112077161,0.1076,4720.9,4720.7,8.41700734]
[1755112077478,0.002,4720.9,4720.8,1.3469]
[1755112078397,0.002,4720.9,4720.7,7.07010734]
[1755112078690,0.002,4720.9,4720.7,6.313]
[1755112079507,0.002,4720.8,4720.7,6.313]
[1755112079790,0.002,4720.8,4720.7,7.2011]
[1755112080175,0.002,4720.8,4720.7,6.313]
[1755112081169,0.002,4720.8,4720.7,7.2011]
[1755112081494,0.002,4720.8,4720.7,8.45789557]
[1755112081998,0.002,4720.8,4720.7,7.10809557]
[1755112082195,0.002,4720.8,4720.7,6.313]
[1755112082763,0.002,4720.8,4720.7,17.02460405]
[1755112083155,0.002,4720.8,4720.7,17.02260405]
[1755112085212,0.002,4720.9,4720.8,0.058]
[1755112086308,0.55,4721.0,4720.9,0.058]
[1755112086520,0.55,4721.0,4720.9,6.355]
[1755112087122,0.55,4721.0,4720.9,7.2431]
[1755112087279,0.55,4721.0,4720.9,7.7048]
[1755112087890,0.55,4721.0,4720.9,6.355]
[1755112089722,1.0043,4721.0,4720.9,6.352]
[1755112089923,1.0043,4721.0,4720.9,22.14960405]
[1755112090321,0.55,4721.0,4720.9,22.14960405]
[1755112090825,1.0043,4721.0,4720.9,22.14960405]
[1755112091221,1.8909,4721.0,4720.9,8.134]
[1755112091516,2.09315,4721.0,4720.9,11.428]
[1755112092101,1.8909,4721.0,4720.9,11.428]
[1755112092541,0.55,4721.0,4720.9,11.428]
[1755112094219,1.0043,4721.0,4720.9,11.428]
[1755112094534,0.55,4721.0,4720.9,11.428]
[1755112094930,1.0043,4721.0,4720.9,11.428]
[1755112095096,1.8909,4721.0,4720.9,11.428]
[1755112095298,1.8909,4721.0,4720.9,5.134]
[1755112095494,2.09315,4721.0,4720.9,8.423]
[1755112096619,2.09315,4721.0,4720.9,5.076]
[1755112097021,2.09315,4721.0,4720.2,0.001]
[1755112097221,0.55,4720.8,4720.5,5.076]
[1755112097413,0.46884586,4720.7,4720.2,0.001]
[1755112097610,0.67210959,4720.6,4720.3,5.076]
[1755112097839,0.55,4720.4,4720.2,0.001]
[1755112098008,0.55,4720.4,4720.1,0.001]
[1755112098009,0.55,4720.2,4720.1,0.001]
[1755112098208,0.55,4720.2,4719.2,0.001]
[1755112098426,0.55,4719.6,4717.6,0.001]
[1755112098601,0.55,4719.2,4717.6,0.001]
[1755112098802,0.6556,4718.8,4717.6,0.001]
[1755112099216,2.01104586,4718.8,4717.6,0.001]
[1755112099429,2.01104586,4718.8,4718.7,3.294]
[1755112099742,0.55,4718.7,4717.6,0.001]
[1755112099898,0.55,4718.5,4717.6,0.001]
[1755112100095,0.6556,4718.3,4717.6,0.36944302]
[1755112100300,0.6556,4718.3,4717.6,0.001]
[1755112100539,1.9965,4718.3,4717.6,0.001]
[1755112100944,1.9965,4718.3,4718.2,3.294]
[1755112101401,1.1099,4718.3,4718.2,3.294]
[1755112101601,1.24100046,4718.3,4718.2,8.371]
[1755112101801,2.12760046,4718.3,4718.2,8.371]
[1755112102040,1.24100046,4718.3,4718.2,8.371]
[1755112102335,0.78670046,4718.3,4718.2,8.371]
[1755112102729,0.6556,4718.3,4718.2,8.371]
[1755112102923,0.1056,4718.3,4718.2,8.371]
[1755112103106,0.1056,4718.3,4718.2,13.08924302]
[1755112104145,0.01454586,4719.5,4718.3,3.0]
[1755112104300,0.01454586,4719.8,4718.6,23.743998]
[1755112104645,0.55,4719.6,4718.7,4.1801]
[1755112104845,0.55,4719.6,4718.8,0.4617]
[1755112104998,0.55,4719.6,4718.8,0.83014302]
[1755112105197,0.6556,4718.9,4718.8,0.83014302]
[1755112105594,0.6556,4718.9,4718.8,1.71824302]
[1755112106196,0.1056,4718.9,4718.8,4.71824302]
[1755112106403,0.1056,4719.3,4718.8,4.71824302]
[1755112106596,0.01454586,4720.1,4719.0,3.0]
[1755112106842,0.1056,4719.1,4719.0,3.0]
[1755112107022,0.1056,4719.1,4719.0,28.093798]
[1755112107243,0.1056,4719.1,4719.0,28.46224102]
[1755112107440,0.6556,4719.1,4719.0,27.11244102]
[1755112107645,0.6556,4719.1,4719.0,3.294]
[1755112108533,0.6556,4719.1,4719.0,27.037998]
[1755112108754,0.6556,4719.1,4719.0,31.387798]
[1755112109057,0.6556,4719.1,4719.0,30.037998]
[1755112109242,0.6556,4719.1,4719.0,31.75624102]
[1755112109713,0.1056,4719.1,4719.0,31.75624102]
[1755112109919,0.55,4720.5,4719.0,31.75624102]
[1755112110118,0.1056,4719.4,4719.0,31.75624102]
[1755112110419,0.1056,4719.4,4719.1,1.2868]
[1755112110913,0.1056,4719.4,4719.1,0.4338]
[1755112111118,0.1056,4719.4,4719.2,1.2868]
[1755112111314,0.6556,4719.4,4719.3,6.293]
[1755112111534,0.1056,4719.4,4719.3,7.94824302]
[1755112111727,0.55,4720.3,4719.3,7.94824302]
[1755112111953,0.8788,4720.9,4720.1,23.743998]
[1755112112133,0.13118,4720.7,4720.2,3.292]
[1755112112546,0.6556,4720.3,4720.2,3.292]
[1755112119663,0.1056,4720.3,4720.2,7.94724302]
[1755112119838,0.1056,4720.3,4720.2,6.66044302]
[1755112120039,15.1556,4720.3,4720.2,6.66044302]
[1755112120261,15.1556,4720.3,4720.2,7.94724302]
[1755112120567,15.1556,4720.3,4720.2,8.25936096]
[1755112120735,0.6556,4720.3,4720.2,8.25936096]
[1755112121258,0.6556,4720.3,4720.2,6.292]
[1755112121870,0.6556,4720.3,4720.2,7.5788]
[1755112122968,0.6556,4720.3,4720.2,18.30169969]
[1755112125266,0.6556,4720.3,4720.2,17.01489969]
[1755112125438,0.6576,4720.3,4720.2,17.86789969]
[1755112127164,0.6576,4720.3,4720.2,17.01489969]
[1755112127569,12.6576,4720.3,4720.2,17.86789969]
[1755112128675,12.6576,4720.3,4720.2,18.30169969]
[1755112129253,12.6576,4720.3,4720.2,23.37869969]
[1755112129754,13.26776,4720.3,4720.2,5.077]
[1755112130077,14.24876,4720.3,4720.2,8.358]
[1755112130278,28.74876,4720.3,4720.2,8.358]
[1755112130475,29.62756,4720.3,4720.2,8.358]
[1755112130842,27.052,4720.3,4720.2,8.358]
[1755112131047,27.052,4720.3,4720.2,9.211]
[1755112131744,27.052,4720.3,4720.2,9.6448]
[1755112131950,27.052,4720.3,4720.2,12.6448]
[1755112132370,27.052,4720.3,4720.2,12.211]
[1755112132568,27.052,4720.3,4720.2,11.358]
[1755112133171,28.3618,4720.3,4720.2,5.077]
[1755112133456,28.3618,4720.3,4720.2,8.36]
[1755112134703,27.052,4720.3,4720.2,8.36]
[1755112135501,0.23395037,4720.3,4720.2,12.6468]
[1755112135665,0.23395037,4720.3,4720.2,14.85335568]
[1755112136594,0.23395037,4720.3,4720.2,24.28945537]
[1755112136798,0.23395037,4720.3,4720.2,37.26840157]
[1755112137201,0.78395037,4720.3,4720.2,33.98540157]
[1755112137408,0.78395037,4720.3,4720.2,35.05984589]
[1755112139375,0.55,4720.7,4720.3,3.0]
[1755112139577,0.55,4720.7,4720.5,3.0]
[1755112139878,0.6556,4720.7,4720.6,3.281]
[1755112140787,1.1289,4720.7,4720.6,3.281]
[1755112141778,0.6556,4720.7,4720.6,3.281]
[1755112142512,2.0498,4720.7,4720.6,3.281]
[1755112143000,1.1289,4720.7,4720.6,3.281]
[1755112143194,0.6556,4720.7,4720.6,3.281]
[1755112143708,15.1556,4720.7,4720.6,3.281]
[1755112145679,15.1556,4720.7,4720.6,8.357]
[1755112146280,14.6056,4720.7,4720.6,11.9749181]
[1755112146577,14.5,4720.7,4720.6,13.2756181]
[1755112146779,0.002,4720.8,4720.7,3.0]
[1755112147180,0.002,4720.8,4720.7,3.8388]
[1755112150807,14.502,4720.8,4720.7,3.8388]
[1755112151002,14.502,4720.8,4720.7,3.0]
[1755112155213,14.9753,4720.8,4720.7,3.0]
[1755112155523,14.502,4720.8,4720.7,3.0]
[1755112158459,14.502,4720.8,4720.7,6.28]
[1755112158460,15.5253,4720.8,4720.7,6.28]
[1755112158595,17.95449,4720.8,4720.7,3.28]
[1755112165618,15.052,4720.8,4720.7,3.28]
[1755112166338,15.5253,4720.8,4720.7,3.28]
[1755112166731,15.052,4720.8,4720.7,3.28]
[1755112167124,16.4462,4720.8,4720.7,3.28]
[1755112168239,15.052,4720.8,4720.7,3.28]
[1755112168645,15.5253,4720.8,4720.7,3.28]
[1755112168847,16.4462,4720.8,4720.7,3.28]
[1755112169042,18.10158,4720.8,4720.7,3.28]
[1755112169554,0.55,4720.7,4720.3,0.001]
[1755112169753,0.01454586,4720.6,4720.4,8.355]
[1755112170059,0.002,4720.8,4720.5,5.076]
[1755112170355,0.6556,4720.6,4720.5,5.076]
[1755112170754,15.1556,4720.6,4720.5,5.076]
[1755112170996,16.67136,4720.6,4720.5,5.076]
[1755112171145,17.11186,4720.6,4720.5,8.355]
[1755112171541,15.1556,4720.6,4720.5,8.355]
[1755112172031,15.5961,4720.6,4720.5,8.355]
[1755112173558,15.1556,4720.6,4720.5,8.355]
[1755112176350,15.1556,4720.6,4720.5,9.1963]
[1755112176551,15.1556,4720.6,4720.5,8.355]
[1755112179250,30.1556,4720.6,4720.5,8.355]
[1755112180454,15.0,4720.6,4720.5,10.59115774]
[1755112180638,15.0,4720.6,4720.5,13.59115774]
[1755112184474,29.5,4720.6,4720.5,13.59115774]
[1755112187368,29.5,4720.6,4720.5,24.31730857]
[1755112187557,29.5,4720.6,4720.5,22.92245083]
[1755112188070,29.5,4720.6,4720.5,23.38645083]
[1755112190677,15.0,4720.6,4720.5,23.38645083]
[1755112191339,15.0,4720.6,4720.5,20.05745083]
[1755112191538,15.0,4720.6,4720.5,20.16305083]
[1755112191844,15.002,4720.6,4720.5,22.24293891]
[1755112192681,15.002,4720.6,4720.5,25.52093891]
[1755112198789,15.002,4720.6,4720.5,24.26563891]
[1755112198992,15.002,4720.6,4720.5,22.07915083]
[1755112199361,15.4425,4720.6,4720.5,22.07915083]
[1755112199583,29.9425,4720.6,4720.5,22.07915083]
[1755112201026,29.502,4720.6,4720.5,22.07915083]
[1755112201576,31.3381,4720.6,4720.5,22.07915083]
[1755112202507,30.5104,4720.6,4720.5,22.07915083]
[1755112203199,30.052,4720.6,4720.5,22.07915083]
[1755112203498,30.052,4720.6,4720.5,22.91095083]
[1755112204167,30.052,4720.6,4720.5,22.07915083]
[1755112207808,29.502,4720.6,4720.5,22.07915083]
[1755112207978,15.002,4720.6,4720.5,23.44475083]
[1755112210913,15.002,4720.6,4720.5,25.65130651]
[1755112211891,0.002,4720.8,4720.6,3.0]
[1755112212207,0.002,4721.2,4720.8,3.0]
[1755112212411,0.002,4721.2,4721.1,13.83175083]
[1755112212618,0.002,4721.2,4721.1,17.10675083]
[1755112212780,0.002,4721.2,4721.1,18.94342591]
[1755112212983,0.002,4721.2,4721.1,20.20342591]
[1755112220619,0.002,4721.7,4721.6,10.72615083]
[1755112220797,0.002,4721.7,4721.6,17.00015083]
[1755112220998,0.002,4721.7,4721.6,18.36575083]
[1755112221198,0.002,4721.7,4721.6,20.20232591]
[1755112221406,0.002,4722.1,4721.7,3.0]
[1755112221613,0.002,4722.1,4722.0,13.72615083]
[1755112221788,0.002,4722.1,4722.0,17.00015083]
[1755112221986,18.372,4722.9,4722.1,3.0]
[1755112222288,18.372,4722.9,4722.8,18.80115083]
[1755112222595,19.1997,4722.9,4722.8,11.6150857]
[1755112222802,19.1997,4722.9,4722.8,11.4546]
[1755112222996,19.1997,4722.9,4722.8,11.4536]
[1755112223615,18.372,4722.9,4722.8,11.4536]
[1755112223813,18.372,4722.9,4722.8,11.8818]
[1755112225200,6.60395037,4722.9,4722.8,6.8068]
[1755112225404,6.60395037,4722.9,4722.8,9.07002547]
[1755112227814,0.02,4724.4,4722.9,3.0]
[1755112228127,0.02,4724.4,4723.4,3.0]
[1755112228432,0.02,4724.4,4724.3,13.72615083]
[1755112228924,0.02,4724.4,4724.3,17.77994979]
[1755112229128,0.02,4724.4,4724.3,19.66116418]
[1755112229536,0.02,4724.4,4724.3,19.41316522]
[1755112230139,0.942,4726.6,4724.4,3.0]
[1755112230302,0.942,4727.2,4725.2,10.72615083]
[1755112230496,0.942,4727.2,4726.3,13.83175083]
[1755112230696,0.942,4727.2,4726.3,3.1056]
[1755112230996,0.942,4726.7,4726.3,17.10375083]
[1755112231413,0.972,4727.4,4726.3,20.41268236]
[1755112231628,0.03,4727.4,4726.3,25.65435026]
[1755112231815,0.03,4727.4,4726.4,3.0]
[1755112232001,0.03,4727.4,4727.3,10.72615083]
[1755112232195,0.972,4727.4,4726.7,3.0]
[1755112232511,0.972,4727.4,4727.3,0.1056]
[1755112232724,0.972,4727.4,4727.3,3.3766]
[1755112232892,0.472,4727.4,4727.3,3.3766]
[1755112233097,14.52,4728.4,4727.4,3.0]
[1755112233098,0.02,4728.4,4727.4,3.0]
[1755112233316,0.02,4728.4,4727.6,3.0]
[1755112233529,0.02,4728.4,4728.3,0.1056]
[1755112233839,0.02,4728.4,4728.3,6.3766]
[1755112234196,0.02,4728.4,4728.3,6.8114]
[1755112234423,0.02,4728.4,4728.3,7.49254]
[1755112234796,0.02,4728.4,4728.3,6.8114]
[1755112234998,0.02,4728.4,4728.3,6.3766]
[1755112235193,0.02,4728.4,4728.3,3.1056]
[1755112235194,0.962,4728.4,4728.3,3.1056]
[1755112235399,1.4027,4728.4,4728.3,6.3756]
[1755112235900,0.962,4728.4,4728.3,6.3756]
[1755112236338,1.9527,4728.4,4728.3,0.1056]
[1755112236517,2.14797,4728.4,4728.3,0.1056]
[1755112236827,2.14797,4728.4,4728.3,3.27]
[1755112237237,1.59797,4728.4,4728.3,3.27]
[1755112237435,0.02,4728.4,4728.3,6.27]
[1755112238238,0.02,4728.4,4728.3,3.0]
[1755112238399,1.4027,4728.4,4728.3,6.269]
[1755112238796,1.4027,4728.4,4728.1,0.1056]
[1755112239046,0.55,4728.3,4728.1,0.1056]
[1755112239327,0.6556,4728.3,4728.2,3.269]
[1755112239497,1.0963,4728.3,4728.2,3.269]
[1755112239699,2.0383,4728.3,4726.9,0.633774]
[1755112239926,0.55,4727.7,4727.2,0.1056]
[1755112240125,0.55,4727.5,4727.2,0.1056]
[1755112240527,0.942,4727.4,4727.2,0.1056]
[1755112240739,1.492,4727.3,4727.2,0.1056]
[1755112240922,1.9327,4727.3,4727.2,3.3746]
[1755112241321,1.3827,4727.3,4727.2,3.3746]
[1755112241905,1.9327,4727.3,4727.2,0.1056]
[1755112242131,2.12597,4727.3,4727.2,0.1056]
[1755112242437,2.12597,4727.3,4727.2,3.269]
[1755112243312,1.9327,4727.3,4727.2,3.269]
[1755112244113,0.55,4727.2,4727.0,0.1056]
[1755112244298,1.9327,4727.2,4727.1,3.269]
[1755112244522,1.492,4727.2,4727.1,3.269]
[1755112244799,1.492,4727.2,4726.7,2.7416]
[1755112245140,0.55,4727.0,4726.8,3.269]
[1755112245311,1.9327,4726.9,4726.8,3.269]
[1755112246135,0.55,4726.8,4726.7,5.636]
[1755112246338,0.55,4726.9,4726.7,8.905]
[1755112246630,1.9327,4726.8,4726.7,8.905]
[1755112247011,1.9327,4726.8,4726.7,10.974]
[1755112248307,2.13653,4726.8,4726.7,7.705]
[1755112248516,2.13653,4726.8,4726.7,10.974]
[1755112249025,0.55,4726.7,4725.6,0.1056]
[1755112249238,0.55,4726.1,4725.8,3.0]
[1755112249640,0.55,4725.9,4725.8,3.0]
[1755112249806,1.9327,4725.9,4725.8,3.0]
[1755112250006,1.9327,4725.9,4725.8,6.269]
[1755112252542,1.9327,4725.9,4725.8,3.0]
[1755112252722,1.9327,4725.9,4725.8,6.269]
[1755112253434,2.13653,4725.9,4725.8,5.069]
[1755112253740,2.15107586,4725.9,4725.8,3.269]
[1755112253930,2.15107586,4725.9,4722.1,0.02]
[1755112254260,0.55,4725.3,4722.2,0.4348]
[1755112254457,0.55,4725.1,4722.2,0.4348]
[1755112254629,0.01454586,4725.0,4722.2,0.4348]
[1755112254815,0.55,4724.8,4722.2,0.54106293]
[1755112255016,0.55,4724.6,4724.2,1.419]
[1755112255325,0.55,4724.4,4722.1,0.4548]
[1755112255535,0.55,4724.2,4723.1,0.021]
[1755112255935,1.9327,4724.2,4723.1,0.021]
[1755112256648,1.9327,4724.2,4724.1,1.75]
[1755112256851,0.55,4724.1,4723.1,0.021]
[1755112257143,1.3827,4724.1,4723.6,0.001]
[1755112257318,0.55,4724.0,4723.6,0.001]
[1755112257819,0.55,4723.8,4723.6,0.001]
[1755112258420,0.55,4724.4,4723.7,2.807]
[1755112258619,0.55,4724.2,4723.7,2.807]
[1755112258820,0.55,4724.0,4723.7,2.807]
[1755112259045,0.56454586,4726.0,4723.7,2.807]
[1755112259246,0.55,4724.3,4723.7,2.807]
[1755112260228,0.55,4724.7,4723.7,2.807]
[1755112260424,0.55,4723.9,4723.7,2.807]
[1755112261221,0.55,4723.7,4723.6,0.001]
[1755112261422,0.56454586,4723.7,4723.6,5.072]
[1755112261642,1.9455,4723.7,4723.6,5.071]
[1755112262967,1.9455,4723.7,4723.6,3.27]
[1755112263131,1.9455,4723.7,4719.8,0.11133677]
[1755112263132,0.55,4723.5,4720.7,0.4476]
[1755112263321,0.6556,4722.2,4720.7,0.5532]
[1755112263661,2.0511,4722.2,4720.7,0.5532]
[1755112264025,2.0511,4722.2,4720.7,0.1056]
[1755112264462,2.0511,4722.2,4719.9,0.4476]
[1755112264763,2.0511,4722.2,4719.9,0.5532]
[1755112264924,2.0511,4722.2,4722.1,0.469]
[1755112265124,2.25621,4722.2,4722.1,0.469]
[1755112265424,16.75621,4722.2,4722.1,0.469]
[1755112266119,19.75621,4722.2,4722.1,0.469]
[1755112266725,3.55,4722.1,4719.9,0.4476]
[1755112266949,0.6556,4721.2,4719.8,0.001]
[1755112267146,0.55,4721.1,4719.8,0.001]
[1755112267470,0.55,4720.5,4719.8,0.001]
[1755112267638,2.06954586,4720.4,4719.8,0.001]
[1755112267836,5.06954586,4720.4,4719.8,0.001]
[1755112268028,1.9455,4720.4,4719.8,0.001]
[1755112268356,19.4455,4720.4,4719.8,0.001]
[1755112268583,19.4455,4720.4,4720.3,3.28]
[1755112269323,3.55,4720.3,4719.8,0.001]
[1755112269551,0.01454586,4720.2,4719.9,1.008]
[1755112269826,0.55,4720.1,4719.8,0.001]
[1755112270049,0.01454586,4720.0,4719.8,0.001]
[1755112270233,0.55,4719.9,4719.8,0.001]
[1755112270656,1.9455,4719.9,4719.8,0.001]
[1755112270838,16.4455,4719.9,4719.8,0.001]
[1755112271037,18.11110505,4719.9,4719.8,0.001]
[1755112271762,18.11110505,4719.9,4719.8,3.28]
[1755112273564,16.71560505,4719.9,4719.8,3.28]
[1755112274234,17.67230505,4719.9,4719.8,3.28]
[1755112275338,16.71560505,4719.9,4719.8,3.28]
[1755112275730,15.05,4719.9,4719.8,3.28]
[1755112275934,14.5,4719.9,4719.8,3.28]
[1755112276136,14.5,4719.9,4719.8,3.7276]
[1755112276464,15.05,4719.9,4719.8,3.7276]
[1755112276769,15.05,4719.9,4719.8,3.28]
[1755112277248,15.1556,4719.9,4719.8,3.28]
[1755112278376,14.6056,4719.9,4719.8,3.7276]
[1755112278540,0.1056,4720.0,4719.8,5.27986]
[1755112278851,0.1056,4720.0,4719.9,1.1196]
[1755112279050,0.1056,4720.4,4719.9,4.1196]
[1755112279245,0.1056,4720.4,4720.0,1.1196]
[1755112279449,0.1056,4720.4,4720.1,0.838546]
[1755112279662,0.1056,4720.4,4720.1,1.958146]
[1755112279883,0.1056,4720.4,4720.2,1.1196]
[1755112280360,0.1056,4720.4,4720.3,0.4476]
[1755112280557,0.6556,4720.4,4720.3,0.4476]
[1755112281973,0.55,4720.3,4719.8,0.001]